[Event "4th Baskent University Open 2019"]
[Site "Ankara"]
[Date "2019.06.19"]
[Round "5"]
[White "Elma, Muge"]
[Black "Mustu, Mehmet Arda"]
[Result "1-0"]
[ECO "E08"]
[WhiteElo "1618"]
[BlackElo "1472"]
[Annotator "NA"]
[PlyCount "89"]
[EventDate "2019.06.18"]
[EventType "swiss"]
[EventCountry "TUR"]
[SourceTitle "playchess.com"]
[Source "ChessBase"]
[SourceQuality "1"]
[TimeControl "5400+30"]

1. d4 {[%emt 0:00:30]} Nf6 {[%emt 0:02:30]} 2. c4 {[%emt 0:00:00]} e6 {[%emt 0:00:30]} 3. Nf3 {[%emt 0:00:00]} d5 {[%emt 0:00:30]} 4. g3 {[%emt 0:00:00]} c6 {[%emt 0:00:30]} 5. Qc2 {[%emt 0:00:00]} Be7 {[%emt 0:00:30]} 6. Bg2 {[%emt 0:00:30]} O-O {[%emt 0:00:30]} 7. O-O {[%emt 0:00:00]} Nbd7 {[%emt 0:01:30]} 8. Rd1 {[%emt 0:00:00]} b6 {[%emt 0:04:30]} 9. b3 {[%emt 0:00:30]} Bb7 {[%emt 0:00:00]} 10. Nc3 {[%emt 0:00:00]} Rc8 {[%emt 0:03:00]} 11. e4 {[%emt 0:00:00]} dxe4 {[%emt 0:04:30]} 12. Nxe4 {[%emt 0:00:30]} Nxe4 {[%emt 0:01:30]} 13. Qxe4 {[%emt 0:00:30]} Nf6 {[%emt 0:00:30]} 14. Qc2 {[%emt 0:00:00]} Qc7 {[%emt 0:01:30]} 15. Bf4 {[%emt 0:00:00]} Bd6 {[%emt 0:00:30]} 16. Bxd6 {[%emt 0:00:30]} Qxd6 {[%emt 0:00:30]} 17. c5 {[%emt 0:00:00]} Qc7 {[%emt 0:01:30]} 18. Rac1 {[%emt 0:01:00]} b5 {[%emt 0:00:30]} 19. b4 {[%emt 0:00:30]} Rfd8 {[%emt 0:02:30]} 20. Ng5 {[%emt 0:02:30]} Rd7 {[%emt 0:02:30]} 21. Rd2 {[%emt 0:02:30]} Rcd8 {[%emt 0:00:30]} 22. Rcd1 {[%emt 0:00:30]} h6 {[%emt 0:01:30]} 23. Ne4 {[%emt 0:01:30]} Nxe4 {[%emt 0:00:00]} 24. Bxe4 {[%emt 0:00:30]} e5 {[%emt 0:06:00]} 25. dxe5 {[%emt 0:00:30]} Rxd2 {[%emt 0:00:30]} 26. Rxd2 {[%emt 0:00:30]} Rxd2 {[%emt 0:00:30]} 27. Qxd2 {[%emt 0:00:30]} Bc8 {[%emt 0:04:30]} 28. Qd6 {[%emt 0:00:30]} Qxd6 {[%emt 0:00:30]} 29. exd6 {[%emt 0:00:30]} Bd7 {[%emt 0:00:30]} 30. Kg2 {[%emt 0:00:30]} f5 {[%emt 0:00:00]} 31. Bc2 {[%emt 0:00:30]} Kf7 {[%emt 0:00:00]} 32. Kf3 {[%emt 0:12:30]} Kf6 {[%emt 0:00:30]} 33. Ke3 {[%emt 0:00:30]} Ke5 {[%emt 0:01:30]} 34. Bb3 {[%emt 0:14:30]} Kf6 {[%emt 0:04:30]} 35. h3 {[%emt 0:15:30]} h5 {[%emt 0:03:30]} 36. Bd1 {[%emt 0:01:30]} g6 {[%emt 0:01:30]} 37. Kd4 {[%emt 0:04:30]} Be6 {[%emt 0:03:30]} 38. a4 {[%emt 0:03:30]} a6 {[%emt 0:00:00]} 39. axb5 {[%emt 0:00:30]} axb5 {[%emt 0:00:00]} 40. Be2 {[%emt 0:00:00]} Bd7 {[%emt 0:02:30]} 41. Bxb5 {[%emt 0:08:00]} cxb5 {[%emt 0:00:30]} 42. Kd5 {[%emt 0:00:00]} f4 {[%emt 0:00:30]} 43. h4 {[%emt 0:00:00]} g5 {[%emt 0:00:00]} 44. hxg5+ {[%emt 0:01:30]} Kxg5 {[%emt 0:00:00]} 45. c6 {[%emt 0:00:00]} 1-0

[Event "4th Baskent University Open 2019"]
[Site "Ankara"]
[Date "2019.06.19"]
[Round "5"]
[White "Gocer, Onur Saygin"]
[Black "Sariali, Furkan Anil"]
[Result "1/2-1/2"]
[ECO "B52"]
[WhiteElo "1595"]
[BlackElo "1749"]
[Annotator "NA"]
[PlyCount "123"]
[EventDate "2019.06.18"]
[EventType "swiss"]
[EventCountry "TUR"]
[SourceTitle "playchess.com"]
[Source "ChessBase"]
[SourceQuality "1"]
[TimeControl "5400+30"]

1. e4 {[%emt 0:00:30]} c5 {[%emt 0:05:30]} 2. Nf3 {[%emt 0:00:00]} d6 {[%emt 0:00:30]} 3. Bb5+ {[%emt 0:00:00]} Bd7 {[%emt 0:00:30]} 4. Bxd7+ {[%emt 0:00:00]} Nxd7 {[%emt 0:00:00]} 5. O-O {[%emt 0:00:00]} g6 {[%emt 0:00:00]} 6. c3 {[%emt 0:00:30]} Bg7 {[%emt 0:00:30]} 7. d4 {[%emt 0:00:00]} Ngf6 {[%emt 0:01:30]} 8. Re1 {[%emt 0:00:00]} O-O {[%emt 0:00:30]} 9. h3 {[%emt 0:00:30]} Rc8 {[%emt 0:02:30]} 10. e5 {[%emt 0:01:30]} Ne8 {[%emt 0:02:30]} 11. Bg5 {[%emt 0:01:30]} dxe5 {[%emt 0:02:30]} 12. dxe5 {[%emt 0:00:30]} Nc7 {[%emt 0:01:30]} 13. Nbd2 {[%emt 0:01:30]} Ne6 {[%emt 0:01:30]} 14. Bh4 {[%emt 0:00:30]} Re8 {[%emt 0:05:30]} 15. Nc4 {[%emt 0:02:30]} Qc7 {[%emt 0:00:30]} 16. Ng5 {[%emt 0:01:30]} Ndf8 {[%emt 0:04:30]} 17. Nxe6 {[%emt 0:07:30]} Nxe6 {[%emt 0:00:30]} 18. Qb3 {[%emt 0:02:30]} Rcd8 {[%emt 0:03:30]} 19. Rad1 {[%emt 0:00:30]} Rxd1 {[%emt 0:01:30]} 20. Rxd1 {[%emt 0:02:30]} b6 {[%emt 0:04:30]} 21. Bg3 {[%emt 0:01:30]} Rd8 {[%emt 0:03:30]} 22. a4 {[%emt 0:01:30]} Rxd1+ {[%emt 0:03:30]} 23. Qxd1 {[%emt 0:00:30]} Qd8 {[%emt 0:01:30]} 24. Qxd8+ {[%emt 0:01:30]} Nxd8 {[%emt 0:00:00]} 25. Ne3 {[%emt 0:00:30]} Nc6 {[%emt 0:02:00]} 26. f4 {[%emt 0:00:30]} Bh6 {[%emt 0:01:30]} 27. Nd5 {[%emt 0:01:30]} Kf8 {[%emt 0:01:30]} 28. Kf1 {[%emt 0:04:30]} Ke8 {[%emt 0:00:30]} 29. Bf2 {[%emt 0:01:30]} Kd7 {[%emt 0:01:30]} 30. g3 {[%emt 0:00:30]} Ke6 {[%emt 0:01:30]} 31. Ne3 {[%emt 0:00:00]} g5 {[%emt 0:04:30]} 32. f5+ {[%emt 0:00:00]} Kd7 {[%emt 0:00:30]} 33. Ng4 {[%emt 0:00:30]} Bg7 {[%emt 0:00:00]} 34. f6 {[%emt 0:01:30]} exf6 {[%emt 0:00:00]} 35. exf6 {[%emt 0:00:00]} Bf8 {[%emt 0:00:30]} 36. Be3 {[%emt 0:00:00]} h6 {[%emt 0:00:30]} 37. h4 {[%emt 0:00:30]} gxh4 {[%emt 0:00:30]} 38. gxh4 {[%emt 0:00:30]} h5 {[%emt 0:01:30]} 39. Nf2 {[%emt 0:00:30]} Ne5 {[%emt 0:02:30]} 40. Ne4 {[%emt 0:02:30]} Ng4 {[%emt 0:00:30]} 41. Bf4 {[%emt 0:04:30]} Ke6 {[%emt 0:01:30]} 42. Bb8 {[%emt 0:00:30]} a6 {[%emt 0:00:30]} 43. Ba7 {[%emt 0:00:30]} Nxf6 {[%emt 0:00:30]} 44. Ng5+ {[%emt 0:00:30]} Ke7 {[%emt 0:05:30]} 45. Bxb6 {[%emt 0:00:30]} c4 {[%emt 0:00:30]} 46. Bc5+ {[%emt 0:02:30]} Ke8 {[%emt 0:00:30]} 47. Bd4 {[%emt 0:01:30]} Ng4 {[%emt 0:02:30]} 48. Ne4 {[%emt 0:00:00]} Be7 {[%emt 0:00:30]} 49. Nd2 {[%emt 0:00:00]} Bxh4 {[%emt 0:01:30]} 50. Nxc4 {[%emt 0:00:30]} Bg3 {[%emt 0:00:30]} 51. b4 {[%emt 0:00:30]} h4 {[%emt 0:01:30]} 52. Kg2 {[%emt 0:00:00]} f5 {[%emt 0:00:30]} 53. b5 {[%emt 0:00:00]} axb5 {[%emt 0:00:30]} 54. axb5 {[%emt 0:00:30]} f4 {[%emt 0:00:30]} 55. b6 {[%emt 0:00:30]} Kd8 {[%emt 0:03:30]} 56. Na5 {[%emt 0:02:30]} Kc8 {[%emt 0:10:09]} 57. c4 {[%emt 0:00:30]} Be1 {[%emt 0:01:34]} 58. Nc6 {[%emt 0:02:30]} Ne3+ {[%emt 0:01:06]} 59. Bxe3 {[%emt 0:01:30]} fxe3 {[%emt 0:00:37]} 60. Nd4 {[%emt 0:00:00]} Kb7 {[%emt 0:00:24]} 61. c5 {[%emt 0:00:00]} Bb4 {[%emt 0:01:29]} 62. Nc2 {[%emt 0:00:30]} 1/2-1/2

[Event "4th Baskent University Open 2019"]
[Site "Ankara"]
[Date "2019.06.19"]
[Round "5"]
[White "Keseroglu, Yigit Can"]
[Black "Ozbag, Berat"]
[Result "1-0"]
[ECO "E92"]
[WhiteElo "1559"]
[BlackElo "1666"]
[Annotator "NA"]
[PlyCount "95"]
[EventDate "2019.06.18"]
[EventType "swiss"]
[EventCountry "TUR"]
[SourceTitle "playchess.com"]
[Source "ChessBase"]
[SourceQuality "1"]
[TimeControl "5400+30"]

1. d4 {[%emt 0:00:30]} Nf6 {[%emt 0:00:30]} 2. c4 {[%emt 0:00:30]} g6 {[%emt 0:00:00]} 3. Nf3 {[%emt 0:00:00]} Bg7 {[%emt 0:00:00]} 4. Nc3 {[%emt 0:00:00]} O-O {[%emt 0:00:30]} 5. e4 {[%emt 0:00:30]} d6 {[%emt 0:00:00]} 6. h3 {[%emt 0:00:00]} Nc6 {[%emt 0:00:00]} 7. Be2 {[%emt 0:02:00]} e5 {[%emt 0:00:30]} 8. d5 {[%emt 0:02:30]} Ne7 {[%emt 0:00:00]} 9. Be3 {[%emt 0:10:30]} Ne8 {[%emt 0:00:00]} 10. g4 {[%emt 0:03:30]} f5 {[%emt 0:00:30]} 11. gxf5 {[%emt 0:01:30]} gxf5 {[%emt 0:00:30]} 12. exf5 {[%emt 0:13:30]} Bxf5 {[%emt 0:01:30]} 13. Ng5 {[%emt 0:02:30]} Qd7 {[%emt 0:05:30]} 14. Bg4 {[%emt 0:00:30]} Nf6 {[%emt 0:06:30]} 15. Bxf5 {[%emt 0:14:30]} Nxf5 {[%emt 0:03:30]} 16. Qd3 {[%emt 0:05:30]} Nxe3 {[%emt 0:02:30]} 17. fxe3 {[%emt 0:00:30]} e4 {[%emt 0:06:30]} 18. Qc2 {[%emt 0:05:30]} Qf5 {[%emt 0:05:30]} 19. Ne6 {[%emt 0:00:30]} Rf7 {[%emt 0:01:30]} 20. O-O-O {[%emt 0:00:30]} Bh6 {[%emt 0:05:30]} 21. Qe2 {[%emt 0:04:30]} Qf3 {[%emt 0:02:30]} 22. Kd2 {[%emt 0:03:30]} Nh5 {[%emt 0:10:30]} 23. Rdf1 {[%emt 0:07:30]} Qxe2+ {[%emt 0:01:30]} 24. Nxe2 {[%emt 0:00:00]} Rf3 {[%emt 0:08:30]} 25. Rxf3 {[%emt 0:05:44]} exf3 {[%emt 0:00:00]} 26. N2d4 {[%emt 0:00:14]} f2 {[%emt 0:03:00]} 27. Nf5 {[%emt 0:00:02]} Bg7 {[%emt 0:08:30]} 28. Rf1 {[%emt 0:00:27]} Bxb2 {[%emt 0:02:30]} 29. Rxf2 {[%emt 0:00:06]} Kf7 {[%emt 0:08:14]} 30. Nxd6+ {[%emt 0:04:36]} Ke7 {[%emt 0:00:15]} 31. Ne4 {[%emt 0:04:53]} c6 {[%emt 0:01:19]} 32. Kd3 {[%emt 0:00:12]} Ba1 {[%emt 0:01:52]} 33. Rf5 {[%emt 0:01:33]} Ng7 {[%emt 0:01:24]} 34. Nxg7 {[%emt 0:00:59]} Bxg7 {[%emt 0:00:03]} 35. d6+ {[%emt 0:00:00]} Ke6 {[%emt 0:00:49]} 36. Rg5 {[%emt 0:00:31]} Bf8 {[%emt 0:00:20]} 37. Rh5 {[%emt 0:02:28]} h6 {[%emt 0:01:22]} 38. Kd4 {[%emt 0:02:34]} Bg7+ {[%emt 0:00:17]} 39. Kd3 {[%emt 0:00:49]} b6 {[%emt 0:00:29]} 40. Rh4 {[%emt 0:00:51]} Rd8 {[%emt 0:02:52]} 41. Rg4 {[%emt 0:00:08]} Bf8 {[%emt 0:00:39]} 42. Rg6+ {[%emt 0:00:02]} Kf5 {[%emt 0:00:19]} 43. Rg8 {[%emt 0:01:36]} Ke6 {[%emt 0:01:33]} 44. c5 {[%emt 0:00:19]} Kf7 {[%emt 0:02:04]} 45. Rg4 {[%emt 0:00:02]} bxc5 {[%emt 0:01:51]} 46. Rf4+ {[%emt 0:00:28]} Ke6 {[%emt 0:03:58]} 47. Nxc5+ {[%emt 0:00:07]} Kd5 {[%emt 0:00:00]} 48. Rf5+ {[%emt 0:00:19]} 1-0

[Event "4th Baskent University Open 2019"]
[Site "Ankara"]
[Date "2019.06.19"]
[Round "5"]
[White "Ozen, Sadettin Alperen"]
[Black "Sarginalp, Tuna"]
[Result "0-1"]
[ECO "B98"]
[WhiteElo "1554"]
[BlackElo "1630"]
[Annotator "NA"]
[PlyCount "58"]
[EventDate "2019.06.18"]
[EventType "swiss"]
[EventCountry "TUR"]
[SourceTitle "playchess.com"]
[Source "ChessBase"]
[SourceQuality "1"]
[TimeControl "5400+30"]

1. e4 {[%emt 0:04:30]} c5 {[%emt 0:00:30]} 2. Nf3 {[%emt 0:00:30]} d6 {[%emt 0:00:30]} 3. d4 {[%emt 0:00:30]} cxd4 {[%emt 0:00:30]} 4. Nxd4 {[%emt 0:00:30]} Nf6 {[%emt 0:00:30]} 5. Nc3 {[%emt 0:00:30]} a6 {[%emt 0:00:30]} 6. Bg5 {[%emt 0:01:30]} e6 {[%emt 0:01:30]} 7. Qe2 {[%emt 0:00:00]} Be7 {[%emt 0:00:30]} 8. f4 {[%emt 0:02:00]} h6 {[%emt 0:09:30]} 9. Bh4 {[%emt 0:00:30]} Qc7 {[%emt 0:01:30]} 10. O-O-O {[%emt 0:03:30]} O-O {[%emt 0:04:30]} 11. g4 {[%emt 0:04:30]} Nc6 {[%emt 0:14:30]} 12. h3 {[%emt 0:16:30]} Nxe4 {[%emt 0:14:30]} 13. Nxe4 {[%emt 0:24:30]} Bxh4 {[%emt 0:00:00]} 14. g5 {[%emt 0:00:00]} hxg5 {[%emt 0:16:00]} 15. Nxc6 {[%emt 0:24:55]} bxc6 {[%emt 0:05:30]} 16. Nxd6 {[%emt 0:00:07]} Rd8 {[%emt 0:01:30]} 17. Qe5 {[%emt 0:02:32]} f6 {[%emt 0:02:30]} 18. Qc5 {[%emt 0:00:12]} Bg3 {[%emt 0:00:30]} 19. Bd3 {[%emt 0:07:27]} Bxf4+ {[%emt 0:00:30]} 20. Kb1 {[%emt 0:00:03]} Bxd6 {[%emt 0:00:30]} 21. Qc4 {[%emt 0:00:38]} Rb8 {[%emt 0:02:30]} 22. h4 {[%emt 0:00:19]} Rb4 {[%emt 0:01:30]} 23. Qc3 {[%emt 0:00:22]} c5 {[%emt 0:11:17]} 24. b3 {[%emt 0:01:28]} g4 {[%emt 0:02:35]} 25. Bg6 {[%emt 0:00:48]} Be5 {[%emt 0:03:32]} 26. Rxd8+ {[%emt 0:00:38]} Qxd8 {[%emt 0:00:06]} 27. Qxc5 {[%emt 0:00:13]} Rd4 {[%emt 0:00:03]} 28. Kc1 {[%emt 0:00:19]} Bb7 {[%emt 0:00:24]} 29. Re1 {[%emt 0:00:32]} Bd6 {[%emt 0:03:32]} 0-1

[Event "4th Baskent University Open 2019"]
[Site "Ankara"]
[Date "2019.06.19"]
[Round "5"]
[White "Duru, Ipek"]
[Black "Taban, Yagiz"]
[Result "1/2-1/2"]
[ECO "B23"]
[WhiteElo "1551"]
[BlackElo "1654"]
[Annotator "NA"]
[PlyCount "39"]
[EventDate "2019.06.18"]
[EventType "swiss"]
[EventCountry "TUR"]
[SourceTitle "playchess.com"]
[Source "ChessBase"]
[SourceQuality "1"]
[TimeControl "5400+30"]

1. e4 {[%emt 0:00:30]} c5 {[%emt 0:02:30]} 2. Nc3 {[%emt 0:00:30]} a6 {[%emt 0:00:30]} 3. g3 {[%emt 0:00:30]} b5 {[%emt 0:00:00]} 4. Bg2 {[%emt 0:00:00]} Bb7 {[%emt 0:00:00]} 5. d3 {[%emt 0:00:00]} e6 {[%emt 0:00:00]} 6. f4 {[%emt 0:00:00]} Nf6 {[%emt 0:00:00]} 7. Nf3 {[%emt 0:00:00]} d5 {[%emt 0:00:30]} 8. e5 {[%emt 0:00:30]} Nfd7 {[%emt 0:04:30]} 9. O-O {[%emt 0:00:30]} Nc6 {[%emt 0:02:30]} 10. Re1 {[%emt 0:03:30]} g6 {[%emt 0:04:30]} 11. Ne2 {[%emt 0:02:30]} Bg7 {[%emt 0:06:30]} 12. g4 {[%emt 0:04:30]} O-O {[%emt 0:01:30]} 13. Ng3 {[%emt 0:00:30]} Re8 {[%emt 0:06:30]} 14. c3 {[%emt 0:01:30]} Qb6 {[%emt 0:19:30]} 15. h4 {[%emt 0:03:30]} f6 {[%emt 0:04:30]} 16. exf6 {[%emt 0:02:30]} Nxf6 {[%emt 0:01:30]} 17. Ne5 {[%emt 0:01:30]} Nxe5 {[%emt 0:00:30]} 18. fxe5 {[%emt 0:00:00]} Nd7 {[%emt 0:00:30]} 19. Bf4 {[%emt 0:01:00]} Qc7 {[%emt 0:06:30]} 20. d4 {[%emt 0:01:30]} 1/2-1/2

[Event "4th Baskent University Open 2019"]
[Site "Ankara"]
[Date "2019.06.19"]
[Round "5"]
[White "Sungu, Yagiz Kaan"]
[Black "Yilmaz, Hasan"]
[Result "1-0"]
[ECO "B38"]
[WhiteElo "1465"]
[BlackElo "1600"]
[Annotator "NA"]
[PlyCount "139"]
[EventDate "2019.06.18"]
[EventType "swiss"]
[EventCountry "TUR"]
[SourceTitle "playchess.com"]
[Source "ChessBase"]
[SourceQuality "1"]
[TimeControl "5400+30"]

1. Nf3 {[%emt 0:00:30]} Nf6 {[%emt 0:00:30]} 2. d4 {[%emt 0:00:30]} g6 {[%emt 0:00:00]} 3. c4 {[%emt 0:00:00]} c5 {[%emt 0:00:00]} 4. Nc3 {[%emt 0:03:00]} cxd4 {[%emt 0:00:30]} 5. Nxd4 {[%emt 0:00:00]} Bg7 {[%emt 0:00:30]} 6. e4 {[%emt 0:01:00]} d6 {[%emt 0:01:30]} 7. Be2 {[%emt 0:01:30]} Nc6 {[%emt 0:00:30]} 8. Be3 {[%emt 0:01:30]} O-O {[%emt 0:07:30]} 9. f3 {[%emt 0:00:30]} a6 {[%emt 0:01:30]} 10. O-O {[%emt 0:00:30]} Bd7 {[%emt 0:00:00]} 11. Qd2 {[%emt 0:02:30]} Nxd4 {[%emt 0:00:00]} 12. Bxd4 {[%emt 0:00:30]} Rb8 {[%emt 0:00:30]} 13. Nd5 {[%emt 0:01:30]} Nxd5 {[%emt 0:09:30]} 14. cxd5 {[%emt 0:00:30]} b5 {[%emt 0:00:30]} 15. Bxg7 {[%emt 0:05:30]} Kxg7 {[%emt 0:00:30]} 16. Qd4+ {[%emt 0:00:30]} Kg8 {[%emt 0:00:30]} 17. Rfc1 {[%emt 0:03:30]} f5 {[%emt 0:01:30]} 18. Rc2 {[%emt 0:08:30]} fxe4 {[%emt 0:00:30]} 19. fxe4 {[%emt 0:00:00]} Rf4 {[%emt 0:22:30]} 20. Rf1 {[%emt 0:09:00]} Rxf1+ {[%emt 0:04:30]} 21. Bxf1 {[%emt 0:02:30]} a5 {[%emt 0:02:30]} 22. Qa7 {[%emt 0:06:30]} Rc8 {[%emt 0:03:30]} 23. Rc3 {[%emt 0:09:30]} Rxc3 {[%emt 0:00:30]} 24. bxc3 {[%emt 0:00:30]} Qc8 {[%emt 0:01:30]} 25. Kf2 {[%emt 0:09:30]} g5 {[%emt 0:09:30]} 26. Be2 {[%emt 0:03:30]} Qc5+ {[%emt 0:13:18]} 27. Qxc5 {[%emt 0:00:30]} dxc5 {[%emt 0:00:00]} 28. Ke3 {[%emt 0:00:30]} Kf7 {[%emt 0:00:12]} 29. e5 {[%emt 0:01:30]} Kg7 {[%emt 0:04:56]} 30. a3 {[%emt 0:03:30]} h6 {[%emt 0:00:34]} 31. Ke4 {[%emt 0:02:30]} Be8 {[%emt 0:14:10]} 32. Kf5 {[%emt 0:06:06]} b4 {[%emt 0:01:00]} 33. axb4 {[%emt 0:00:55]} cxb4 {[%emt 0:00:04]} 34. cxb4 {[%emt 0:00:00]} axb4 {[%emt 0:00:24]} 35. Bd1 {[%emt 0:00:56]} Bd7+ {[%emt 0:00:32]} 36. e6 {[%emt 0:02:18]} Bb5 {[%emt 0:00:44]} 37. Bb3 {[%emt 0:00:10]} Be8 {[%emt 0:00:42]} 38. Ke5 {[%emt 0:00:12]} Kg6 {[%emt 0:00:47]} 39. Bc2+ {[%emt 0:01:02]} Kg7 {[%emt 0:00:07]} 40. Bb3 {[%emt 0:04:34]} Kg6 {[%emt 0:00:26]} 41. g4 {[%emt 0:01:14]} Bb5 {[%emt 0:00:30]} 42. d6 {[%emt 0:00:30]} exd6+ {[%emt 0:00:30]} 43. Kxd6 {[%emt 0:00:30]} Kf6 {[%emt 0:00:02]} 44. e7 {[%emt 0:00:59]} Be8 {[%emt 0:00:40]} 45. Be6 {[%emt 0:01:01]} Kg7 {[%emt 0:01:02]} 46. Kc7 {[%emt 0:00:38]} Kf6 {[%emt 0:00:21]} 47. Kd8 {[%emt 0:00:25]} Bg6 {[%emt 0:01:18]} 48. Bf5 {[%emt 0:00:22]} Bf7 {[%emt 0:00:34]} 49. e8=Q {[%emt 0:01:22]} Bxe8 {[%emt 0:00:07]} 50. Kxe8 {[%emt 0:00:11]} h5 {[%emt 0:00:10]} 51. h3 {[%emt 0:01:34]} b3 {[%emt 0:00:07]} 52. Kf8 {[%emt 0:06:34]} b2 {[%emt 0:00:04]} 53. Kg8 {[%emt 0:00:06]} Ke5 {[%emt 0:00:19]} 54. Kg7 {[%emt 0:01:31]} Kf4 {[%emt 0:00:30]} 55. Kg6 {[%emt 0:00:00]} h4 {[%emt 0:00:08]} 56. Bb1 {[%emt 0:01:57]} Kg3 {[%emt 0:00:09]} 57. Kxg5 {[%emt 0:00:00]} Kxh3 {[%emt 0:00:03]} 58. Kf4 {[%emt 0:00:35]} Kg2 {[%emt 0:00:12]} 59. g5 {[%emt 0:00:46]} h3 {[%emt 0:00:42]} 60. g6 {[%emt 0:00:37]} Kf2 {[%emt 0:01:54]} 61. g7 {[%emt 0:01:09]} h2 {[%emt 0:00:03]} 62. g8=Q {[%emt 0:00:30]} h1=Q {[%emt 0:00:08]} 63. Qg3+ {[%emt 0:00:00]} Ke2 {[%emt 0:01:29]} 64. Qe3+ {[%emt 0:00:41]} Kd1 {[%emt 0:00:57]} 65. Qd3+ {[%emt 0:00:15]} Ke1 {[%emt 0:00:10]} 66. Qc3+ {[%emt 0:00:19]} Ke2 {[%emt 0:01:49]} 67. Bd3+ {[%emt 0:00:38]} Kf2 {[%emt 0:00:34]} 68. Qd2+ {[%emt 0:00:26]} Kg1 {[%emt 0:00:40]} 69. Qe1+ {[%emt 0:00:17]} Kh2 {[%emt 0:00:01]} 70. Qg3# {[%emt 0:00:02]} 1-0

[Event "4th Baskent University Open 2019"]
[Site "Ankara"]
[Date "2019.06.20"]
[Round "6"]
[White "Annaberdiev, Meilis"]
[Black "Darban, Morteza"]
[Result "1-0"]
[ECO "B40"]
[WhiteElo "2532"]
[BlackElo "2264"]
[Annotator "ChessBase"]
[PlyCount "125"]
[EventDate "2019.06.18"]
[EventType "swiss"]
[EventCountry "TUR"]
[SourceTitle "playchess.com"]
[Source "ChessBase"]
[SourceQuality "1"]
[TimeControl "5400+30"]

1. e4 {[%emt 0:00:30]} c5 {[%emt 0:01:30]} 2. Nf3 {[%emt 0:00:00]} e6 {[%emt 0:01:30]} 3. g3 {[%emt 0:01:00]} Nc6 {[%emt 0:02:30]} 4. Bg2 {[%emt 0:00:00]} Nf6 {[%emt 0:00:30]} 5. Qe2 {[%emt 0:00:00]} d5 {[%emt 0:00:00]} 6. d3 {[%emt 0:00:30]} b6 {[%emt 0:03:00]} 7. O-O {[%emt 0:00:30]} Bb7 {[%emt 0:00:00]} 8. Re1 {[%emt 0:12:30]} Be7 {[%emt 0:06:00]} 9. c3 {[%emt 0:05:30]} h6 {[%emt 0:03:30]} 10. h3 {[%emt 0:03:30]} Qd7 {[%emt 0:02:30]} 11. a3 {[%emt 0:04:30]} O-O-O {[%emt 0:17:30]} 12. Nbd2 {[%emt 0:08:30]} Ba6 {[%emt 0:06:30]} 13. e5 {[%emt 0:07:30]} Ne8 {[%emt 0:00:30]} 14. b4 {[%emt 0:00:30]} Nc7 {[%emt 0:00:30]} 15. bxc5 {[%emt 0:02:30]} bxc5 {[%emt 0:03:30]} 16. Rb1 {[%emt 0:02:30]} Na8 {[%emt 0:11:30]} 17. Nb3 {[%emt 0:08:30]} c4 {[%emt 0:02:30]} 18. dxc4 {[%emt 0:00:30]} Bxc4 {[%emt 0:02:30]} 19. Qc2 {[%emt 0:00:30]} Nb6 {[%emt 0:09:30]} 20. Be3 {[%emt 0:00:30]} Qc7 {[%emt 0:00:00]} 21. a4 {[%emt 0:10:30]} Kd7 {[%emt 0:01:00]} 22. Nfd2 {[%emt 0:04:30]} Ba6 {[%emt 0:08:11]} 23. Qd1 {[%emt 0:09:15]} Ke8 {[%emt 0:03:07]} 24. Qg4 {[%emt 0:03:17]} Kf8 {[%emt 0:04:29]} 25. Bxb6 {[%emt 0:04:44]} axb6 {[%emt 0:00:36]} 26. Nd4 {[%emt 0:00:48]} Bd3 {[%emt 0:07:25]} 27. Qf3 {[%emt 0:02:44]} Nxd4 {[%emt 0:00:48]} 28. Qxd3 {[%emt 0:00:02]} Nc6 {[%emt 0:00:49]} 29. Qe3 {[%emt 0:03:40]} Bc5 {[%emt 0:00:28]} 30. Qf4 {[%emt 0:00:19]} Na5 {[%emt 0:00:19]} 31. Nf3 {[%emt 0:00:51]} Qe7 {[%emt 0:00:54]} 32. h4 {[%emt 0:02:12]} h5 {[%emt 0:00:46]} 33. Bf1 {[%emt 0:00:57]} Kg8 {[%emt 0:01:31]} 34. Bd3 {[%emt 0:00:35]} Rh6 {[%emt 0:00:02]} 35. Nd4 {[%emt 0:00:20]} Kh8 {[%emt 0:00:56]} 36. Re3 {[%emt 0:00:08]} Rf8 {[%emt 0:00:36]} 37. Rf3 {[%emt 0:01:31]} Kg8 {[%emt 0:00:18]} 38. Re1 {[%emt 0:01:19]} f5 {[%emt 0:00:34]} 39. Qd2 {[%emt 0:00:50]} Rg6 {[%emt 0:00:20]} 40. Rf4 {[%emt 0:00:15]} Rg4 {[%emt 0:00:54]} 41. Be2 {[%emt 0:00:00]} Rxf4 {[%emt 0:00:26]} 42. Qxf4 {[%emt 0:00:01]} Qf7 {[%emt 0:00:30]} 43. Qg5 {[%emt 0:00:30]} g6 {[%emt 0:00:30]} 44. Bxh5 {[%emt 0:00:07]} Kh7 {[%emt 0:00:26]} 45. Be2 {[%emt 0:00:18]} Nc4 {[%emt 0:00:18]} 46. Bxc4 {[%emt 0:00:47]} dxc4 {[%emt 0:00:07]} 47. Qf4 {[%emt 0:00:00]} Qd7 {[%emt 0:00:20]} 48. Nf3 {[%emt 0:00:00]} Qd5 {[%emt 0:00:07]} 49. Rb1 {[%emt 0:01:17]} Ra8 {[%emt 0:00:59]} 50. Rb2 {[%emt 0:00:09]} Rxa4 {[%emt 0:00:20]} 51. Rd2 {[%emt 0:00:07]} Ra1+ {[%emt 0:00:37]} 52. Kh2 {[%emt 0:00:04]} Qb7 {[%emt 0:00:12]} 53. h5 {[%emt 0:03:24]} gxh5 {[%emt 0:00:19]} 54. Qg5 {[%emt 0:00:38]} Qf7 {[%emt 0:01:27]} 55. Qd8 {[%emt 0:00:44]} Be7 {[%emt 0:00:15]} 56. Qc7 {[%emt 0:00:01]} Kg7 {[%emt 0:01:00]} 57. Rd7 {[%emt 0:00:36]} Kf8 {[%emt 0:00:01]} 58. Ng5 {[%emt 0:00:00]} Qe8 {[%emt 0:00:58]} 59. Nxe6+ {[%emt 0:00:00]} Kf7 {[%emt 0:00:00]} 60. Ng5+ {[%emt 0:01:25]} Kf8 {[%emt 0:00:02]} 61. Nh7+ {[%emt 0:00:00]} Kg8 {[%emt 0:01:26]} 62. Rxe7 {[%emt 0:00:04]} Qa8 {[%emt 0:00:01]} 63. Nf6+ {[%emt 0:00:12]} 1-0